Cogmind - Beta 14 @@@ ROGUE MODE // 2024.10.02 @ 05:29:18 Player: Zaros426 Result: Destroyed by as-11191 with Assembled Maul Performance ------------- Evolutions (0) 0 Regions Visited (3) 600 Robots Destroyed (55) 275 Value Destroyed (828) 828 Prototype IDs (43) 860 Alien Tech Used (0) 0 Bonus (191) 191 TOTAL SCORE: 2754 Bonus ------- Aligned with FarCom 300 Friendly Fire -109 Cogmind --------- Core Integrity 0/250 Matter 249/300 Energy 100/100 System Corruption 2% Temperature Cool (0) Movement Core (50) Location -10/Exiles Parts ------- > --- POWER (1) -------- (None) > --- PROPULSION (2) --- (None) > --- UTILITY (2) ------ (None) > --- WEAPON (2) ------- Datajack > --- INVENTORY (5) ---- Superbattery (714) Modified TNC Assault Rifle Rocket Launcher Dirty Datajack (20) Peak State ------------ > --- POWER ------------ (None) > --- PROPULSION ------- Light Treads Wheel > --- UTILITY ---------- High-capacity Storage Unit Targeting Computer > --- WEAPON ----------- Datajack Longsword +1 > --- INVENTORY -------- Improved Heat Sink Large Storage Unit Superbattery High-capacity Matter Pod Improved Terrain Scanner Terrain Scan Processor Modified TNC ECM Suite Light Armor Plating Hardened Light Armor Plating Hardened Light Armor Plating Hacking Suite Assault Rifle Light Cannon Light Cannon Rocket Launcher Rocket Launcher Dirty Datajack [Rating: 17] Favorites ----------- Power Ion Engine Engine Ion Engine Propulsion Light Treads Treads Light Treads Leg Aluminum Leg Wheel Wheel Utility Targeting Computer Device Seismic Detector Storage Small Storage Unit Processor Targeting Computer Protection Light Armor Plating Weapon EM Pulse Gun Energy Gun EM Pulse Gun Ballistic Gun Assault Rifle Ballistic Cannon Light Cannon Special Weapon Welding Torch Slashing Weapon Mining Claw Special Melee Weapon Datajack Build | -11 -10 -10 -10 ------- Run | Yrd Mat Min Exi Slots Evolved . | . . . . Power . | . . . . Propulsion . | . . . . Utility . | . . . . Weapon . | . . . . Parts Attached 49 | 9 29 7 4 Power 4 | 1 2 1 . Engine 4 | 1 2 1 . Core . | . . . . Reactor . | . . . . Propulsion 11 | 2 7 2 . Treads 9 | 2 7 . . Leg 1 | . . 1 . Wheel 1 | . . 1 . Hover . | . . . . Flight . | . . . . Utility 10 | 2 6 . 2 Device 2 | 1 1 . . Storage 3 | 1 1 . 1 Processor 1 | . 1 . . Hackware . | . . . . Protection 4 | . 3 . 1 Artifact . | . . . . Weapon 24 | 4 14 4 2 Energy Gun 12 | 4 8 . . Energy Cannon . | . . . . Ballistic Gun 5 | . 3 2 . Ballistic Cannon 2 | . 1 1 . Launcher . | . . . . Special Weapon 1 | . . 1 . Impact Weapon . | . . . . Slashing Weapon 3 | . 2 . 1 Piercing Weapon . | . . . . Special Melee Weapon 1 | . . . 1 Unidentified Prototypes . | . . . . Parts Lost 10 | . 3 4 3 Power 2 | . 1 1 . Propulsion 3 | . . 1 2 Utility 2 | . 1 . 1 Weapon 3 | . 1 2 . Highest Loss Streak 3 | . 2 3 3 To Critical Strikes . | . . . . Average Slot Usage (%) 93 | . 99 91 74 Engine 11 | . 13 11 . Treads 24 | . 27 21 13 Wheel 1 | . . 1 14 Device 2 | . 5 . . Storage 14 | . 14 14 14 Processor 8 | . 3 14 13 Protection 2 | . 5 . . Energy Gun 16 | . 21 14 . Ballistic Gun 5 | . 6 6 1 Ballistic Cannon 2 | . . 6 1 Special Melee Weapon 1 | . . . 12 Peak Build Rating 17 | 7 9 9 17 Average Rating 8 | 5 8 8 10 On Entrance 6 | . 7 9 9 Naked Turns . | . . . . Heaviest Build 46 | 15 29 30 46 Greatest Support 40 | 40 40 40 10 Greatest Overweight (x) 4 | . 1 2 4 Average Overweight (x) . | . . . 3 Largest Inventory Capacity 20 | 8 15 15 20 Average Capacity 12 | 7 9 15 19 Most Carried 19 | 3 15 15 19 Average Carried 10 | 1 7 14 17 Final Capacity 15 | 8 15 15 5 Final Carried 15 | 3 15 15 5 Class Distribution -------------------- 100% | Mutant Dominant Class ---------------- Mutant | -10/Materials Mutant | -10/Mines Mutant | -10/Exiles Resources | -11 -10 -10 -10 ----------- Run | Yrd Mat Min Exi Matter Collected 1028 | 290 567 171 . Remotely . | . . . . Salvage Created 1514 | 255 944 315 . Parts 129 | 13 87 29 . Haulers Intercepted 1 | . 1 . . Recyclers Shooed 1 | . . 1 . Parts Field Recycled . | . . . . Retrieved Matter . | . . . . Parts Self-Destructed . | . . . . Prevented . | . . . . Kills | -11 -10 -10 -10 ------- Run | Yrd Mat Min Exi Combat Hostiles Destroyed 30 | . 22 8 . Guns 26 | . 21 5 . Cannons 2 | . . 2 . AOE 2 | . 1 1 . Classes Destroyed 10 | 2 8 . . Worker 6 | . 4 2 . Builder 2 | . 1 1 . Tunneler 10 | 8 1 1 . Hauler 1 | . 1 . . Recycler 2 | 1 . 1 . Operator 1 | . 1 . . Watcher 3 | . 3 . . Swarmer 17 | . 11 6 . Grunt 12 | . 10 2 . Subdweller 1 | . 1 . . Best Kill Streak 4 | 4 4 3 . Combat Bots Only 3 | . 3 3 . Max Kills in Single Turn 1 | 1 1 1 . Gunslinging . | . . . . Exploded 1 | . 1 1 . Melee . | . . . . Uniques/NPCs Destroyed . | . . . . Combat | -11 -10 -10 -10 -------- Run | Yrd Mat Min Exi Hostile Shots Fired 132 | . 79 42 11 Missed 32 | . 22 9 1 Damage Taken 1515 | 6 641 332 536 Core 276 | . 81 25 170 Absorbed by Shields . | . . . . Core Remaining (%) 100 | 100 . . . Volleys Fired 116 | 29 64 23 . Largest 2 | 2 2 2 . Hottest 90 | 80 90 80 . Shots Fired 210 | 38 128 44 . Gun 195 | 38 128 29 . Cannon 15 | . . 15 . Launcher . | . . . . Special . | . . . . Kinetic 52 | . 24 28 . Thermal 29 | 20 9 . . Explosive . | . . . . Electromagnetic 129 | 18 95 16 . Robot Hit Streak 5 | 4 5 5 . Robot Miss Streak 5 | 2 5 3 . Penetration Max . | . . . . Secondary Targets 3 | . 2 1 . Max Gunslinging Chain 1 | . 1 1 . Shots Hit Robots 125 | 23 73 24 5 Core Hits 65 | 9 42 14 . Critical Kills . | . . . . Critical Parts Destroyed . | . . . . Critical Strikes 2 | 1 1 . . Burn 2 | 1 1 . . Melee Attacks 9 | . 4 . 5 Impact . | . . . . Slashing 5 | . 4 . 1 Piercing . | . . . . Sneak Attacks 4 | . . . 4 Combat Hostiles . | . . . . Follow-up Attacks . | . . . . Damage Inflicted 1976 | 361 1111 395 109 Guns 1519 | 283 977 259 . Cannons 70 | . . 70 . Explosions 278 | 78 134 66 . Melee 109 | . . . 109 Ramming . | . . . . Kinetic 378 | . 151 227 . Thermal 491 | 241 184 66 . Explosive . | . . . . Electromagnetic 998 | 120 776 102 . Impact . | . . . . Slashing 109 | . . . 109 Piercing . | . . . . Highest Corruption 2 | . 2 2 2 Average Corruption 2 | . 2 2 2 Corruption Purged . | . . . . Corruption Blocked . | . . . . Effects 38 | . 11 24 3 Message Errors 6 | . 3 2 1 Matter Fused 8 | . 2 6 . Heat Flow Errors 5 | . 1 2 2 Energy Discharges 6 | . 3 3 . Parts Fused 2 | . . 2 . Data Loss (minor) 4 | . 1 3 . Data Loss (major) 4 | . . 4 . Misfires 1 | . . 1 . Alerts 1 | . 1 . . Weapon Failures 1 | . . 1 . Overload Shots . | . . . . Overflow Damage 49 | . . . 49 Projectiles . | . . . . Explosions . | . . . . Melee 49 | . . . 49 Knockbacks . | . . . . Impact . | . . . . Kinetic . | . . . . Secondary . | . . . . Self-Inflicted Damage 108 | 7 76 25 . Shots 4 | 1 2 1 . Rammed . | . . . . Targets Rammed . | . . . . Kicked . | . . . . Crushed . | . . . . Highest Temperature 239 | 90 208 239 216 Average Temperature 54 | 26 62 54 93 Received Heat Transfer 156 | . 111 45 . Siege Activations . | . . . . Robots Corrupted . | . . . . Combat Hostiles . | . . . . Parts Fried 5 | 2 2 1 . Impact Corruptions . | . . . . Robots Melted . | . . . . Combat Hostiles . | . . . . Parts Melted 6 | 3 1 2 . Heat Transferred 1227 | 655 472 100 . Parts Sabotaged . | . . . . Parts Stolen . | . . . . Parts Stripped . | . . . . Power Chain Reactions 7 | 2 4 1 . Alert | -11 -10 -10 -10 ------- Run | Yrd Mat Min Exi Peak Influence 283 | 45 283 182 . Initial 108 | . 29 108 . Average 125 | 18 180 70 . Maximum Alert Level 1 | . 1 . . Low Security (%) 72 | 100 49 100 . Level 1 27 | . 50 . . Level 2 . | . . . . Level 3 . | . . . . Level 4 . | . . . . Level 5 . | . . . . High Security . | . . . . Max Security . | . . . . Squads Dispatched 4 | . 4 . . Investigation 2 | . 2 . . Extermination . | . . . . Reinforcement 2 | . 2 . . Assault . | . . . . Garrison . | . . . . Intercept . | . . . . Searches Triggered . | . . . . Construction Impeded . | . . . . Haulers Reinforced . | . . . . Active Scanning Responses . | . . . . Cargo Convoy Interrupts . | . . . . Stealth | -11 -10 -10 -10 --------- Run | Yrd Mat Min Exi Distress Signals 5 | . 5 . . Communications Jammed . | . . . . Distress Signals . | . . . . Times Spotted 50 | . 33 8 9 Peak Tracking Total 12 | . 4 3 12 Tactical Retreats 5 | . 5 . . Traps | -11 -10 -10 -10 ------- Run | Yrd Mat Min Exi Traps Triggered 5 | . 5 . . Indirectly . | . . . . Trap Hack Attempts . | . . . . Triggered . | . . . . Disarmed . | . . . . Reprogrammed . | . . . . Reused . | . . . . Traps Extracted . | . . . . Installed . | . . . . Triggered . | . . . . Machines | -11 -10 -10 -10 ---------- Run | Yrd Mat Min Exi Machines Disabled 2 | . 1 1 . Max in Single Turn 1 | . 1 1 . Machines Repaired . | . . . . Machines Dismantled . | . . . . Machines Sabotaged . | . . . . Overloaded Fab Kills . | . . . . Hacking | -11 -10 -10 -10 --------- Run | Yrd Mat Min Exi Machines Accessed 10 | . 9 . 1 Terminals 7 | . 7 . . Fabricators . | . . . . Repair Stations . | . . . . Recycling Units 2 | . 2 . . Scanalyzers . | . . . . Garrison Access . | . . . . Total Hacks 37 | . 36 . 1 Successful 21 | . 20 . 1 Failed 15 | . 15 . . Catastrophic 1 | . 1 . . Database Lockouts 1 | . 1 . . Manual 22 | . 21 . 1 Terminals 33 | . 33 . . Fabricators . | . . . . Repair Stations . | . . . . Recycling Units 3 | . 3 . . Scanalyzers . | . . . . Garrison Access . | . . . . Terminal Hacks 10 | . 9 . 1 Robot Schematic 1 | . 1 . . Robot Analysis 1 | . 1 . . Prototype ID Bank 3 | . 3 . . Locate Traps 2 | . 2 . . Hauler Manifests 1 | . 1 . . Zone Layout 1 | . 1 . . Derelict Proto ID Bank 1 | . . . 1 Fabricator Hacks . | . . . . Repair Station Hacks . | . . . . Recycling Unit Hacks . | . . . . Scanalyzer . | . . . . Garrison Access Hacks . | . . . . Unauthorized Hacks 11 | . 11 . . Terminals 9 | . 9 . . Botnet 2 | . 2 . . Operators 1 | . 1 . . Skim 6 | . 6 . . Fabricators . | . . . . Repair Stations . | . . . . Recycling Units 2 | . 2 . . Tunnel 2 | . 2 . . Scanalyzers . | . . . . Garrison Access . | . . . . Data Cores Recovered . | . . . . Used . | . . . . Hacking Detections 8 | . 8 . . Full Trace Events 1 | . 1 . . Feedback Events . | . . . . Feedback Blocked . | . . . . Robot Schematics Acquired 1 | . 1 . . Robots Built . | . . . . Authchips . | . . . . Time . | . . . . Total Robot Build Rating . | . . . . Part Schematics Acquired . | . . . . Parts Built . | . . . . Authchips . | . . . . Time . | . . . . Total Part Build Rating . | . . . . Parts Repaired . | . . . . Time . | . . . . Parts Recycled . | . . . . Recycled Matter . | . . . . Retrieved Matter . | . . . . Retrieved Components . | . . . . Parts Scanalyzed . | . . . . Part Schematics Acquired . | . . . . Parts Damaged . | . . . . Bothacking | -11 -10 -10 -10 ------------ Run | Yrd Mat Min Exi Used RIF Installer . | . . . . Robots Hacked 4 | . . . 4 Non-combat 3 | . . . 3 Combat 1 | . . . 1 Robot Hacks Applied 4 | . . . 4 parse_system 4 | . . . 4 Relay Couplers Released . | . . . . Fabnet Peak Effective % . | . . . . Robots Rewired . | . . . . Allies Hacked . | . . . . Hacks Repelled . | . . . . Allies | -11 -10 -10 -10 -------- Run | Yrd Mat Min Exi Total Allies . | . . . . Largest Group . | . . . . Highest-Rated Group . | . . . . Highest-Rated Ally . | . . . . Total Orders . | . . . . Ally Attacks . | . . . . Total Damage . | . . . . Kills . | . . . . Allies Corrupted . | . . . . Allies Melted . | . . . . Intel | -11 -10 -10 -10 ------- Run | Yrd Mat Min Exi Robot Analysis Total 1 | . 1 . . Derelict Logs Recovered 1 | . . 1 . Drone Launches . | . . . . Drone Recoveries . | . . . . Exploration | -11 -10 -10 -10 ------------- Run | Yrd Mat Min Exi Turns Passed 3637 | 285 1789 1214 349 Spaces Moved 1868 | 104 876 646 242 Core 6 | 2 . . 4 Treads 1540 | 102 876 562 . Legs . | . . . . Wheels 322 | . . 84 238 Hover . | . . . . Flight . | . . . . Fastest Speed 50 | 50 160 110 100 Average Speed 162 | 157 160 175 136 Slowest Speed 240 | 160 240 240 140 Overloaded Moves . | . . . . Propulsion Burnouts . | . . . . Robots Hopped . | . . . . Cave-ins Triggered . | . . . . Exploration Rate (%) 65 | 7 98 99 58 Regions Visited 3 Branch Regions 2 Pre-discovered Areas 2 | . 2 . . Known Exits Taken . | . . . . Unknown Exits Taken 3 | 1 1 1 . Scrap Searched 1 | . . 1 . Spaces Dug 1 | . 1 . . Terrain Destroyed 23 | 2 17 4 . Melee 1 | . 1 . . Projectile . | . . . . AOE 22 | 2 16 4 . Terrain Rammed . | . . . . Walls Destroyed . | . . . . Machines Disabled . | . . . . Actions | -11 -10 -10 -10 --------- Run | Yrd Mat Min Exi Total 2245 | 182 1122 683 258 Wait 150 | 38 110 2 . Move 1865 | 103 875 645 242 Hop . | . . . . Pick Up 32 | 3 23 2 4 Fast Attach 20 | 7 9 4 . Attach 6 | . 2 2 2 Detach 2 | . . . 2 Swap 23 | 2 18 1 2 Drop 22 | . 17 4 1 Fire 116 | 29 64 23 . Melee 9 | . 4 . 5 Ram . | . . . . Kick . | . . . . Crush . | . . . . Escape Stasis . | . . . . Rewire . | . . . . Trap . | . . . . Miscellaneous . | . . . . Route ------- -11/Scrapyard -10/Materials (discovered 5 exits: [*Mat x3] / [*Min] / [*Sub]) -10/Mines (discovered 4 exits: [*Mat x2] / *Exi / [*Sub]) -10/Exiles History --------- Turn | Location | Event 7 | -11/Scrapyard | Discovered new exit (range 15) 286 | -11/Scrapyard | Entered Materials 300 | -10/Materials | Build established: Mutant 886 | -10/Materials | Derelicts attacked the area 1022 | -10/Materials | Discovered new exit (range 12) 1023 | -10/Materials | Central database locked down 1159 | -10/Materials | Discovered new exit (range 15) 1407 | -10/Materials | Discovered new exit (range 8) 1464 | -10/Materials | Discovered new exit (range 15) 1772 | -10/Materials | Discovered new exit (range 8) 2075 | -10/Materials | Entered Mines 2080 | -10/Mines | Met a Derelict bent on vengeance 2101 | -10/Mines | Learned Materials trap positions 2403 | -10/Mines | Discovered new exit (range 10) 2451 | -10/Mines | Deemed a non-threat by the Exiles lab entrance 2451 | -10/Mines | Discovered new exit (range 5) 2695 | -10/Mines | Discovered new exit (range 14) 2750 | -10/Mines | Lost 3 parts (1n2w) 2967 | -10/Mines | Discovered new exit (range 10) 3289 | -10/Mines | Entered Exiles 3319 | -10/Exiles | Met 8R-AWN 3346 | -10/Exiles | Met EX-HEX 3388 | -10/Exiles | Met EX-BIN 3405 | -10/Exiles | Aligned with FarCom system 3407 | -10/Exiles | Given EX-Vault access code 3442 | -10/Exiles | Opened EX-Vault 3449 | -10/Exiles | Found Modified TNC 3452 | -10/Exiles | Found Longsword +1 3455 | -10/Exiles | Found Superbattery 3487 | -10/Exiles | Warned to stay clear of 0b10 Research branches 3524 | -10/Exiles | Met EX-DEC 3618 | -10/Exiles | Attacked by the Exiles 3622 | -10/Exiles | Core integrity fell below 50% 3626 | -10/Exiles | Core integrity fell below 20% 3638 | -10/Exiles | Destroyed by as-11191 with Assembled Maul Last Messages --------------- New IDs: Hvy. Deuterium Engine Exp. Core Analyzer AWS/EX-DEC 03606_ System corrupted: Heat flow error (+128). 03617_ Sneak attack on A-02 Transporter. 03617_ Destroyed Ion Engine. 03618_ EXILES: Hostile robot within lab perimeter. Defensive protocols time, folks! 03620_ EX-DEC: "Let's see what this bad boy can do..." 03620_ EX-DEC deploys DAS Turret. 03621_ Lgt. Treads destroyed. 03623_ Longsword +1 blasted off. 03623_ Knocked back. 03626_ Acquired Longsword +1. 03627_ Discarded Targeting Computer. 03629_ Knocked back. 03630_ EX-BIN: "I just want to science!" 03633_ Wheel destroyed. 03634_ Dropped Hcp. Storage Unit. 03637_ Hrd. Light Armor Plating destroyed. Map ----- +----------------------------------------------------+ | ????????????????????????????????#""""""?# #?## | | ?????????????????????????????????#"###??# #?#" | | ????????????????????????????????????????# #?#" | | ????????????????????????????????????????# #?#" | | ???????????????????????????????????????## ###" | | ???????????????????????????????????????#" | | ???????????????????????????????????????#" | | ???????????????????????????????????????#" | | ???????????????????????????????????????#" | | ???????????????????????????????????????#" | | ???????????????????????????????????????#" | | ????????????????????????????""?????????## | | ??????????????????????????? ??????????# | | ?????????????????????????"" ??????????#" " | | ?????????????????????????"" ??????????#" " | | ????????????????????????? "??????????#" """ | | ??????????????????????????" "?????????##" #### | | ????????????? ????????????# #????????##"" #??? | | ???????????? #####????### ###?######"" #??? | | ???????????? """#####X# #"###""""""" ##?? | | ???????????? """""" " "" ##? | | ??????????? "" """ " ## | | ???????????# " " z | | ?????????????# | | ???????????????# | | ????????????????# @ % | | ?????????????????# a | | ?????????????????##" a ! % | | ??????????????????#""" a]%] """""" | | ?????????????????##" !!!!! ######""" | | ?????????????????#"" !/! ""##????#####""" | | ????????????????##""" !!a """##?????????##"" | | ????????????????#""" a"""##???????????#"" | | ????????????????#""" a""#????????????#"" | | ????????????????#"" c "#######???###""" | | ????????????????#""" a% ## ####""" | | ????????????????#"" t """" | | ????????????????##"" | | ?????????????????#"""" | | ?????????????????## | | ??????????????????#" " "" | | ??????????????????#"""" ""## ##""" | | ??????????????????#"" ""#### #??### | | ??????????????????#" """"##??# #????? | | ??????????????????#""" """#???# #????? | | ??????????????????## ""##???! ????? | | ???????????????????#"" """#?????" ???? | | ???????????????????##""" ##?????" "??? | | ????????????????????##"""" ##??????!!""!"??? | | ???????????????????????# #??????########?? | +----------------------------------------------------+ Best States ------------- Heat Dissipation 25 Energy Generation 15 Energy Capacity 250 Matter Stores 300 Matter Capacity 300 Sight Range 16 Terrain Scan Density 10 Armor Coverage 150 Evasion (%) 40 Targeting Accuracy 5 Recoil Reduction 2 Item Schematics ----------------- None Robot Schematics ------------------ M-13 Machinist | -10/Materials | Hacked Fabricated ------------ Nothing Alien Tech Used ----------------- None Achievements -------------- None Challenges ------------ None Game ------ Seed LightpackNovaMonowheel Manual? 0 Play Time 00:22:25 Cumulative 133.5 hours Start 2024.10.02 @ 05:08:54 End 2024.10.02 @ 05:29:18 Sessions 1 Manual Loads 0 Difficulty Rogue Special Mode None Game No. 65 Rogue 65 Adventurer 0 Explorer 0 Win Type - Total 0 Types 0/0/0/0/0/0/0/0/0 Lore% 49 Gallery% 68 Achievement% 56 Wizard Run 0 Options --------- Layout 0 ASCII 0 Keyboard 0 Movement Mouse Keybinds 0 Fullscreen 1 Font 24/Smallcaps Map View 183x50 Zoom Use 0% Tactical HUD 1 Map Filters NONE Filters NONE Steam 0 RUN: 01d5dcbd-c1c2-4890-9504-01de5099ddab